fUST/lending_fUST_20250811
["ID","MTS","AMOUNT","RATE_DAILY","PERIOD"]
[378475906,1754879451972,-460.0,0.00021327,2]
[378475907,1754879451982,-552.23,0.00021327,2]
[378475908,1754879451991,-460.0,0.00021327,2]
[378475909,1754879452001,-460.0,0.00021327,2]
[378475910,1754879452011,-2297.75,0.00021327,2]
[378475911,1754879452023,-460.0,0.00021327,2]
[378475912,1754879452034,-460.0,0.00021327,2]
[378475913,1754879452045,-460.0,0.00021327,2]
[378475914,1754879452054,-460.0,0.00021328,2]
[378475915,1754879452064,-460.0,0.00021328,2]
[378475916,1754879452073,-501.85,0.00021328,2]
[378475917,1754879452082,-568.91,0.00021328,2]
[378475918,1754879452092,-460.0,0.00021328,2]
[378475919,1754879452102,-460.0,0.00021328,2]
[378475920,1754879452112,-645.62,0.00021328,2]
[378475921,1754879452121,-460.0,0.00021328,2]
[378475922,1754879452131,-460.0,0.00021328,2]
[378475923,1754879452140,-460.0,0.00021328,2]
[378475924,1754879452150,-1166.95,0.00021328,2]
[378475925,1754879452160,-460.0,0.00021328,2]
[378475926,1754879452170,-460.0,0.00021328,2]
[378475927,1754879452179,-419.52344536,0.00021328,2]
[378475928,1754879452189,-1333.39,0.00021328,2]
[378475929,1754879452199,-460.71,0.00021329,2]
[378475930,1754879452208,-460.0,0.00021329,2]
[378475931,1754879452218,-550.26,0.00021329,2]
[378475932,1754879452227,-460.0,0.00021329,2]
[378475933,1754879452238,-617.1,0.00021329,2]
[378475934,1754879452247,-460.0,0.00021329,2]
[378475935,1754879452257,-1301.66,0.00021329,2]
[378475936,1754879452266,-1008.77,0.00021329,2]
[378475937,1754879452276,-912.71,0.00021329,2]
[378475938,1754879452286,-460.0,0.00021329,2]
[378475939,1754879452295,-460.0,0.00021329,2]
[378475940,1754879452305,-460.0,0.00021329,2]
[378475941,1754879452314,-460.0,0.00021329,2]
[378475942,1754879452324,-460.0,0.0002133,2]
[378475943,1754879452333,-460.0,0.0002133,2]
[378475944,1754879452343,-487.31,0.0002133,2]
[378475945,1754879452352,-460.0,0.0002133,2]
[378475946,1754879452361,-460.0,0.0002133,2]
[378475947,1754879452371,-546.44,0.0002133,2]
[378475948,1754879452380,-460.0,0.0002133,2]
[378475949,1754879452390,-1068.33,0.0002133,2]
[378475950,1754879452401,-1083.78,0.00021331,2]
[378475951,1754879452410,-1684.6,0.00021331,2]
[378475952,1754879452419,-1500.0,0.00021368,2]
[378475953,1754879452429,-1500.0,0.00021368,2]
[378475954,1754879452439,-500.0,0.00021407,2]
[378475955,1754879452449,-501.51449853,0.00021407,2]
[378475956,1754879452458,-569.97181184,0.00021407,2]
[378475957,1754879452468,-158.12880838,0.00021407,2]
[378475958,1754879452477,-500.0,0.00021407,2]
[378475959,1754879452487,-500.0,0.00021407,2]
[378475960,1754879452496,-500.0,0.00021407,2]
[378475961,1754879452506,-500.73227592,0.00021408,2]
[378475962,1754879452517,-439.29879107,0.00021486,2]
[378475963,1754879452529,-11571.42878108,0.000215,2]
[378475964,1754879452539,-497.79159648,0.00021521,2]
[378475965,1754879452548,-151.0,0.00021525,2]
[378475966,1754879452558,-500.0,0.00021525,2]
[378475967,1754879452568,-151.0,0.00021525,2]
[378475968,1754879452578,-151.0,0.00021525,2]
[378475969,1754879452588,-500.0,0.00021525,2]
[378475970,1754879452598,-151.0,0.00021525,2]
[378475971,1754879452608,-561.39600129,0.00021525,2]
[378475972,1754879452618,-151.0,0.00021525,2]
[378475973,1754879452628,-151.0,0.00021525,2]
[378475974,1754879452637,-151.0,0.00021525,2]
[378475975,1754879452650,-151.0,0.00021525,2]
[378475976,1754879452660,-151.0,0.00021525,2]
[378475977,1754879452670,-152.62670612,0.00021525,2]
[378475978,1754879452680,-151.0,0.00021525,2]
[378475979,1754879452690,-151.0,0.00021525,2]
[378475980,1754879452700,-156.04189223,0.00021525,2]
[378475981,1754879452711,-151.0,0.00021525,2]
[378475982,1754879452720,-151.0,0.00021525,2]
[378475983,1754879452729,-151.0,0.00021525,2]
[378475984,1754879452739,-151.0,0.00021525,2]
[378475985,1754879452748,-151.0,0.00021525,2]
[378475986,1754879452758,-151.0,0.00021525,2]
[378475987,1754879452767,-151.0,0.00021525,2]
[378475988,1754879452777,-151.0,0.00021525,2]
[378475989,1754879452787,-151.0,0.00021525,2]
[378475990,1754879452796,-151.0,0.00021525,2]
[378475991,1754879452805,-151.0,0.00021525,2]
[378475992,1754879452814,-151.0,0.00021525,2]
[378475993,1754879452824,-151.0,0.00021525,2]
[378475994,1754879452833,-151.0,0.00021525,2]
[378475995,1754879452842,-151.0,0.00021525,2]
[378475996,1754879452857,-151.0,0.00021525,2]
[378475997,1754879452867,-500.0,0.00021573,2]
[378475998,1754879452878,-500.0,0.00021573,2]
[378475999,1754879452888,-500.0,0.00021573,2]
[378476000,1754879452899,-460.0,0.000216,2]
[378476001,1754879452908,-580.01659955,0.000216,2]
[378476002,1754879452918,-344.53184898,0.000216,2]
[378476003,1754879452927,-661.12,0.000216,2]
[378476004,1754879452936,-593.54849359,0.000216,2]
[378476005,1754879452946,-460.0,0.00021601,2]
[378476006,1754879452955,-460.0,0.00021601,2]
[378476007,1754879452965,-460.0,0.00021601,2]
[378476008,1754879452974,-460.0,0.00021601,2]
[378476009,1754879452984,-460.0,0.00021601,2]
[378476010,1754879452993,-460.0,0.00021601,2]
[378476011,1754879453003,-480.4,0.00021601,2]
[378476012,1754879453018,-460.0,0.00021601,2]
[378476013,1754879453027,-461.94,0.00021601,2]
[378476014,1754879453037,-460.0,0.00021601,2]
[378476015,1754879453047,-756.38,0.00021601,2]
[378476016,1754879453057,-1399.25,0.00021601,2]
[378476017,1754879453066,-460.0,0.00021601,2]
[378476018,1754879453075,-460.0,0.00021601,2]
[378476019,1754879453085,-460.0,0.00021601,2]
[378476020,1754879453094,-460.0,0.00021601,2]
[378476021,1754879453103,-1560.09,0.00021601,2]
[378476022,1754879453113,-460.0,0.00021601,2]
[378476023,1754879453122,-460.0,0.00021601,2]
[378476024,1754879453131,-552.23,0.00021601,2]
[378476025,1754879453144,-567.71,0.00021601,2]
[378476026,1754879453153,-460.0,0.00021601,2]
[378476027,1754879453163,-2297.75,0.00021601,2]
[378476028,1754879453173,-460.0,0.00021601,2]
[378476029,1754879453182,-88.01974365,0.00021601,2]
[378476030,1754879461247,150.0,0.00027789,30]
[378476031,1754879462007,1169.56794106,0.0001986,2]
[378476032,1754879521583,181.53635799,0.00019859,2]
[378476033,1754879534469,214.276868,0.00013699,2]
[378476035,1754879546785,7802.99941962,0.0001986,2]
[378476036,1754879568868,446.52733551,0.00019857,2]
[378476037,1754879606142,10000.0,0.00018968,2]
[378476038,1754879614937,150.0,0.00027873,30]
[378476039,1754879615180,810.51141648,0.0001923,2]
[378476040,1754879638028,3681.02312772,0.000199,2]
[378476046,1754879759428,390.71141858,0.00019856,2]
[378476047,1754879821147,3696.32280597,0.000199,2]
[378476048,1754879917497,540.34094432,0.0001923,2]
[378476050,1754879927340,851.40989318,0.0001986,2]
[378476052,1754879949721,341.87249124,0.00019856,2]
[378476053,1754879958310,24900.0,0.00018957,2]
[378476054,1754879961451,11782.54014241,0.00031343,120]
[378476056,1754879986332,150.0,0.00027386,30]
[378476058,1754879999939,3573.1120458,0.000199,2]
[378476059,1754880008933,1200.0,0.00019953,2]
[378476061,1754880065308,300.0,0.00019953,2]
[378476062,1754880066635,150.0,0.00027981,30]
[378476063,1754880096701,1200.0,0.00019953,2]
[378476064,1754880122323,300.0,0.00019953,2]
[378476065,1754880123988,154.0,0.00019953,2]
[378476066,1754880135238,558.17107959,0.00019856,2]
[378476068,1754880145418,150.0,0.00027674,30]
[378476072,1754880182533,300.0,0.00019953,2]
[378476073,1754880184482,433.23,0.00019949,3]
[378476074,1754880195145,216.61,0.00019949,3]
[378476076,1754880206044,649.86,0.00019949,3]
[378476077,1754880211379,3452.32742144,0.000199,2]
[378476078,1754880218764,150.0,0.0001913,2]
[378476079,1754880229131,150.0,0.00027716,30]
[378476081,1754880244359,584.6,0.00030137,120]
[378476082,1754880267693,681.12791452,0.00019859,2]
[378476085,1754880302257,300.0,0.00019953,2]
[378476086,1754880302829,300.0,0.00019953,2]
[378476089,1754880308062,1200.0,0.00019953,2]
[378476100,1754880315141,150.0,0.0002761,30]
[378476108,1754880325330,615.20516498,0.00019854,2]
[378476112,1754880336770,460.0,0.00019953,2]
[378476113,1754880348224,460.0,0.00019953,2]
[378476114,1754880350093,460.0,0.00019953,2]
[378476115,1754880354991,460.0,0.00019953,2]
[378476116,1754880358362,460.0,0.00019953,2]
[378476117,1754880360019,471.03127346,0.00019953,2]
[378476118,1754880363044,460.74774085,0.00019953,2]
[378476119,1754880363451,300.0,0.00019953,2]
[378476120,1754880366264,460.0,0.00019953,2]
[378476121,1754880367277,460.0,0.00019953,2]
[378476122,1754880368900,460.0,0.00019953,2]
[378476123,1754880369017,460.0,0.00019953,2]
[378476125,1754880369940,460.0,0.00019953,2]
[378476126,1754880372005,460.0,0.00019953,2]
[378476127,1754880376344,461.48583597,0.00019953,2]
[378476128,1754880376779,460.0,0.00019953,2]
[378476129,1754880380909,460.0,0.00019953,2]
[378476130,1754880389823,460.0,0.00019953,2]
[378476131,1754880392311,801.76,0.00030137,120]
[378476132,1754880392540,3337.24984088,0.000199,2]
[378476133,1754880395171,340.69161881,0.00019953,2]
[378476134,1754880397005,461.7980235,0.00019953,2]
[378476135,1754880397484,1200.0,0.00019953,2]
[378476136,1754880398127,150.0,0.00027652,30]
[378476137,1754880403144,461.35473002,0.00019953,2]
[378476138,1754880403485,460.0,0.00019953,2]
[378476139,1754880405098,461.02141033,0.00019953,2]
[378476140,1754880409485,461.78272913,0.00019953,2]
[378476141,1754880411563,460.0,0.00019953,2]
[378476142,1754880414788,460.0,0.00019953,2]
[378476143,1754880416716,461.39376404,0.00019953,2]
[378476144,1754880420572,462.0006719,0.00019953,2]
[378476145,1754880421884,186.490531,0.00019863,2]
[378476146,1754880422599,300.0,0.00019953,2]
[378476147,1754880424595,460.0,0.00019953,2]
[378476148,1754880425090,460.0,0.00019953,2]
[378476149,1754880429919,466.46763923,0.00019953,2]
[378476150,1754880433799,460.0,0.00019953,2]
[378476151,1754880434066,460.0,0.00019953,2]
[378476152,1754880439657,460.0,0.00019953,2]
[378476153,1754880441646,463.01066672,0.00019953,2]
[378476154,1754880443793,460.0,0.00019953,2]
[378476155,1754880445755,460.0,0.00019953,2]
[378476156,1754880446584,460.0,0.00019953,2]
[378476157,1754880448719,460.0,0.00019953,2]
[378476158,1754880460976,460.0,0.00019953,2]
[378476159,1754880463142,464.28318477,0.00019953,2]
[378476160,1754880463465,463.92160783,0.00019953,2]
[378476161,1754880465359,460.0,0.00019953,2]
[378476162,1754880467448,460.0,0.00019953,2]
[378476163,1754880474406,150.0,0.00027623,30]
[378476164,1754880475572,460.0,0.00019953,2]
[378476165,1754880478674,460.0,0.00019953,2]
[378476166,1754880478880,151.0,0.000188,2]
[378476167,1754880479199,151.0,0.000175,2]
[378476168,1754880479543,151.0,0.000162,2]
[378476169,1754880479852,151.0,0.000149,2]
[378476170,1754880480140,151.0,0.000136,2]
[378476171,1754880480456,151.0,0.000123,2]
[378476172,1754880483156,464.09515016,0.00019953,2]
[378476173,1754880483961,300.0,0.00019953,2]
[378476174,1754880489376,460.0,0.00019953,2]
[378476175,1754880495164,419.67937768,0.00019953,2]
[378476176,1754880495427,465.0332204,0.00019953,2]
[378476177,1754880497353,460.0,0.00019953,2]
[378476178,1754880509383,460.0,0.00019953,2]
[378476179,1754880513170,460.0,0.00019953,2]
[378476180,1754880515555,460.0,0.00019953,2]
[378476181,1754880515797,538.30451934,0.00019854,2]
[378476182,1754880532840,460.0,0.00019953,2]
[378476183,1754880542974,300.0,0.00019953,2]
[378476184,1754880544927,460.0,0.00019953,2]
[378476188,1754880560847,150.0,0.00019953,2]
[378476189,1754880568929,460.0,0.00019953,2]
[378476190,1754880571288,468.91564565,0.00019953,2]
[378476191,1754880575778,460.0,0.00019953,2]
[378476192,1754880577686,460.0,0.00019953,2]
[378476193,1754880583076,883.65,0.00019953,2]
[378476194,1754880591405,10000.0,0.00018957,2]
[378476195,1754880592721,3287.27471337,0.000199,2]
[378476197,1754880602523,300.0,0.00019953,2]
[378476198,1754880605394,203.0,0.00019953,2]
[378476199,1754880605824,1200.0,0.00019953,2]
[378476202,1754880621618,460.0,0.00019953,2]
[378476203,1754880626422,150.0,0.00027323,30]
[378476207,1754880629803,3392.3,0.00019953,2]
[378476223,1754880632137,-25344.30557637,0.00019954,2]
[378476225,1754880632147,-460.0,0.00019954,2]
[378476227,1754880632156,-13.86251744,0.00019954,2]
[378476296,1754880638027,-446.13748256,0.00019954,2]
[378476298,1754880638036,-461.53109414,0.00019954,2]
[378476300,1754880638046,-460.0,0.00019954,2]
[378476302,1754880638055,-460.0,0.00019954,2]
[378476304,1754880638064,-460.0,0.00019954,2]
[378476306,1754880638074,-460.0,0.00019954,2]
[378476309,1754880638082,-460.0,0.00019954,2]
[378476311,1754880638092,-460.0,0.00019954,2]
[378476313,1754880638101,-460.0,0.00019954,2]
[378476315,1754880638111,-460.0,0.00019954,2]
[378476317,1754880638125,-460.0,0.00019954,2]
[378476319,1754880638134,-899.15,0.00019954,2]
[378476321,1754880638143,-664.01,0.00019954,2]
[378476323,1754880638152,-460.0,0.00019954,2]
[378476325,1754880638162,-460.0,0.00019954,2]
[378476326,1754880638173,-460.0,0.00019954,2]
[378476329,1754880638182,-285.24252852,0.00019954,2]
[378476330,1754880638192,-460.0,0.00019954,2]
[378476333,1754880638202,-460.0,0.00019954,2]
[378476335,1754880638212,-605.76,0.00019954,2]
[378476337,1754880638221,-2032.61,0.00019954,2]
[378476339,1754880638230,-460.0,0.00019954,2]
[378476341,1754880638239,-460.0,0.00019954,2]
[378476342,1754880638248,-2159.23,0.00019954,2]
[378476344,1754880638257,-460.0,0.00019954,2]
[378476346,1754880638266,-460.0,0.00019954,2]
[378476348,1754880638275,-460.0,0.00019954,2]
[378476350,1754880638284,-460.0,0.00019954,2]
[378476352,1754880638293,-460.0,0.00019954,2]
[378476354,1754880638302,-551.89,0.00019954,2]
[378476356,1754880638311,-582.02,0.00019954,2]
[378476358,1754880638321,-2233.61,0.00019954,2]
[378476360,1754880638330,-460.0,0.00019954,2]
[378476362,1754880638339,-460.0,0.00019954,2]
[378476380,1754880638502,-460.0,0.00019954,2]
[378476383,1754880638516,-460.0,0.00019954,2]
[378476385,1754880638526,-460.0,0.00019954,2]
[378476387,1754880638536,-469.06,0.00019954,2]
[378476389,1754880638546,-460.0,0.00019954,2]
[378476391,1754880638555,-460.0,0.00019954,2]
[378476393,1754880638564,-258.99986822,0.00019954,2]
[378476395,1754880638573,-460.0,0.00019954,2]
[378476397,1754880638582,-460.0,0.00019954,2]
[378476399,1754880638592,-460.0,0.00019954,2]
[378476401,1754880638601,-1051.15,0.00019954,2]
[378476403,1754880638610,-460.0,0.00019954,2]
[378476405,1754880638620,-160.0,0.00019955,2]
[378476406,1754880638629,-470.6987789,0.00019955,2]
[378476408,1754880638639,-460.0,0.00019955,2]
[378476409,1754880638648,-1880.4,0.00019955,2]
[378476411,1754880638658,-460.0,0.00019955,2]
[378476413,1754880638668,-460.0,0.00019955,2]
[378476414,1754880638678,-1435.66,0.00019955,2]
[378476416,1754880638688,-500.0,0.00019955,2]
[378476418,1754880638698,-293.52068383,0.00019955,2]
[378476419,1754880638707,-551.24704711,0.00019955,2]
[378476421,1754880638718,-500.0,0.00019955,2]
[378476423,1754880638727,-500.0,0.00019955,2]
[378476424,1754880638736,-254.74221675,0.00019955,2]
[378476426,1754880638745,-548.65290103,0.00019955,2]
[378476427,1754880638755,-500.0,0.00019955,2]
[378476429,1754880638765,-372.14321197,0.00019955,2]
[378476431,1754880638774,-500.0,0.00019955,2]
[378476433,1754880638783,-214.05454388,0.00019955,2]
[378476434,1754880638792,-500.0,0.00019955,2]
[378476436,1754880638802,-500.0,0.00019955,2]
[378476438,1754880638810,-500.0,0.00019955,2]
[378476439,1754880638819,-500.0,0.00019955,2]
[378476441,1754880638829,-500.0,0.00019955,2]
[378476443,1754880638838,-500.0,0.00019955,2]
[378476444,1754880638847,-500.0,0.00019955,2]
[378476446,1754880638860,-500.0,0.00019955,2]
[378476447,1754880638869,-500.0,0.00019955,2]
[378476449,1754880638878,-500.0,0.00019955,2]
[378476451,1754880638887,-500.0,0.00019955,2]
[378476452,1754880638896,-500.0,0.00019955,2]
[378476454,1754880638906,-500.0,0.00019955,2]
[378476456,1754880638916,-299.66263408,0.00019955,2]
[378476457,1754880638925,-500.0,0.00019955,2]
[378476459,1754880638936,-500.0,0.00019955,2]
[378476461,1754880638946,-500.0,0.00019955,2]
[378476462,1754880638955,-500.0,0.00019955,2]
[378476464,1754880638964,-500.0,0.00019955,2]
[378476465,1754880638973,-500.0,0.00019955,2]
[378476467,1754880638983,-500.0,0.00019955,2]
[378476469,1754880638992,-500.0,0.00019955,2]
[378476471,1754880639001,-500.0,0.00019955,2]
[378476472,1754880639011,-500.0,0.00019955,2]
[378476474,1754880639020,-516.98776392,0.00019955,2]
[378476476,1754880639029,-500.0,0.00019955,2]
[378476478,1754880639038,-210.96259725,0.00019955,2]
[378476480,1754880639047,-305.17495094,0.00019955,2]
[378476481,1754880639056,-500.0,0.00019955,2]
[378476483,1754880639065,-500.0,0.00019955,2]
[378476484,1754880639074,-460.0,0.00019956,2]
[378476486,1754880639083,-156.84963811,0.00019956,2]
[378476488,1754880639092,-460.0,0.00019956,2]
[378476490,1754880639101,-460.0,0.00019956,2]
[378476492,1754880639110,-460.0,0.00019956,2]
[378476493,1754880639119,-475.97763256,0.00019956,2]
[378476495,1754880639128,-460.0,0.00019956,2]
[378476496,1754880639137,-460.0,0.00019956,2]
[378476498,1754880639146,-460.0,0.00019956,2]
[378476499,1754880639154,-460.0,0.00019956,2]
[378476501,1754880639164,-719.33,0.00019956,2]
[378476503,1754880639174,-460.0,0.00019956,2]
[378476505,1754880639183,-460.0,0.00019956,2]
[378476506,1754880639192,-583.75,0.00019956,2]
[378476508,1754880639201,-460.0,0.00019956,2]
[378476510,1754880639210,-475.03906444,0.00019956,2]
[378476512,1754880639219,-460.0,0.00019956,2]
[378476513,1754880639229,-460.0,0.00019956,2]
[378476515,1754880639238,-464.84695847,0.00019956,2]
[378476517,1754880639248,-460.0,0.00019956,2]
[378476519,1754880639258,-460.0,0.00019956,2]
[378476521,1754880639267,-462.6206176,0.00019956,2]
[378476522,1754880639277,-460.0,0.00019956,2]
[378476524,1754880639286,-464.69961007,0.00019956,2]
[378476526,1754880639295,-460.0,0.00019956,2]
[378476528,1754880639304,-460.0,0.00019956,2]
[378476529,1754880639314,-460.0,0.00019956,2]
[378476531,1754880639323,-1245.76,0.00019956,2]
[378476533,1754880639332,-460.0,0.00019956,2]
[378476534,1754880639342,-460.88629126,0.00019956,2]
[378476536,1754880639351,-460.0,0.00019956,2]
[378476538,1754880639361,-464.34421792,0.00019956,2]
[378476541,1754880639370,-463.12473543,0.00019956,2]
[378476542,1754880639379,-460.0,0.00019956,2]
[378476545,1754880639388,-460.0,0.00019956,2]
[378476548,1754880639396,-460.0,0.00019956,2]
[378476550,1754880639405,-460.0,0.00019956,2]
[378476552,1754880639414,-460.0,0.00019956,2]
[378476554,1754880639423,-460.0,0.00019956,2]
[378476555,1754880639432,-460.0,0.00019956,2]
[378476557,1754880639441,-460.0,0.00019956,2]
[378476559,1754880639450,-460.0,0.00019956,2]
[378476560,1754880639459,-1007.93221506,0.00019956,2]
[378476562,1754880639469,-460.0,0.00019956,2]
[378476564,1754880639479,-460.0,0.00019956,2]
[378476566,1754880639489,-462.41521282,0.00019956,2]
[378476568,1754880639499,-463.51038176,0.00019956,2]
[378476569,1754880639508,-462.92542764,0.00019956,2]
[378476571,1754880639517,-471.52331831,0.00019956,2]
[378476573,1754880639526,-460.0,0.00019956,2]
[378476575,1754880639536,-460.0,0.00019956,2]
[378476576,1754880639545,-460.0,0.00019956,2]
[378476578,1754880639554,-463.54142439,0.00019956,2]
[378476580,1754880639564,-511.44857748,0.00019956,2]
[378476582,1754880639573,-462.55347835,0.00019956,2]
[378476583,1754880639584,-465.92634809,0.00019956,2]
[378476585,1754880639594,-608.91,0.00019956,2]
[378476587,1754880639603,-599.6,0.00019956,2]
[378476589,1754880639614,-460.0,0.00019956,2]
[378476591,1754880639623,-460.0,0.00019956,2]
[378476592,1754880639633,-460.0,0.00019956,2]
[378476594,1754880639642,-477.07534814,0.00019956,2]
[378476596,1754880639652,-460.0,0.00019956,2]
[378476597,1754880639661,-460.0,0.00019956,2]
[378476599,1754880639671,-463.5675182,0.00019956,2]
[378476601,1754880639683,-460.0,0.00019956,2]
[378476603,1754880639693,-500.0,0.00019956,2]
[378476605,1754880639703,-460.0,0.00019956,2]
[378476606,1754880639711,-460.0,0.00019956,2]
[378476608,1754880639722,-460.0,0.00019956,2]
[378476610,1754880639732,-275.37548179,0.00019956,2]
[378476612,1754880639741,-460.0,0.00019956,2]
[378476614,1754880639751,-460.0,0.00019956,2]
[378476615,1754880639760,-460.0,0.00019956,2]
[378476617,1754880639769,-460.0,0.00019956,2]
[378476618,1754880639779,-464.56012665,0.00019956,2]
[378476620,1754880639789,-460.0,0.00019956,2]
[378476622,1754880639798,-464.75490289,0.00019956,2]
[378476624,1754880639807,-460.0,0.00019956,2]
[378476625,1754880639817,-460.0,0.00019956,2]
[378476627,1754880639826,-460.0,0.00019956,2]
[378476629,1754880639835,-461.96103739,0.00019956,2]
[378476631,1754880639845,-460.0,0.00019956,2]
[378476632,1754880639859,-460.0,0.00019956,2]
[378476634,1754880639869,-460.0,0.00019956,2]
[378476636,1754880639878,-460.0,0.00019956,2]
[378476638,1754880639887,-564.87012893,0.00019956,2]
[378476639,1754880639899,-460.0,0.00019956,2]
[378476641,1754880639908,-455.56454257,0.00019956,2]
[378476643,1754880639918,-460.0,0.00019956,2]
[378476645,1754880639930,-460.0,0.00019956,2]
[378476646,1754880639939,-460.0,0.00019956,2]
[378476648,1754880639949,-464.6785692,0.00019956,2]
[378476650,1754880639958,-460.0,0.00019956,2]
[378476652,1754880639968,-463.8166586,0.00019956,2]
[378476653,1754880639977,-460.0,0.00019956,2]
[378476655,1754880639986,-460.0,0.00019956,2]
[378476657,1754880639996,-476.89475432,0.00019956,2]
[378476659,1754880640005,-460.0,0.00019956,2]
[378476660,1754880640014,-460.0,0.00019956,2]
[378476662,1754880640024,-460.0,0.00019956,2]
[378476664,1754880640033,-460.0,0.00019957,2]
[378476666,1754880640043,-462.00338238,0.00019957,2]
[378476667,1754880640052,-460.0,0.00019957,2]
[378476669,1754880640061,-460.0,0.00019957,2]
[378476671,1754880640071,-743.79,0.00019957,2]
[378476672,1754880640080,-460.0,0.00019957,2]
[378476674,1754880640091,-460.0,0.00019957,2]
[378476676,1754880640100,-460.0,0.00019957,2]
[378476678,1754880640109,-460.0,0.00019957,2]
[378476679,1754880640118,-460.0,0.00019957,2]
[378476681,1754880640127,-460.0,0.00019957,2]
[378476683,1754880640136,-460.0,0.00019957,2]
[378476685,1754880640145,-460.0,0.00019957,2]
[378476686,1754880640154,-460.0,0.00019957,2]
[378476688,1754880640163,-158.92,0.00019958,2]
[378476690,1754880640172,-684.54,0.00019958,2]
[378476692,1754880640181,-460.0,0.00019958,2]
[378476693,1754880640191,-460.0,0.00019958,2]
[378476695,1754880640200,-945.08,0.00019958,2]
[378476697,1754880640209,-1475.15,0.00019958,2]
[378476699,1754880640219,-1832.92,0.00019958,2]
[378476700,1754880640228,-481.99,0.00019958,2]
[378476702,1754880640237,-2083.08,0.00019958,2]
[378476704,1754880640247,-460.0,0.00019958,2]
[378476706,1754880640256,-1260.47,0.00019958,2]
[378476707,1754880640266,-356.32633799,0.00019959,2]
[378476709,1754880640276,-960.46666352,0.0002,2]
[378476711,1754880640285,-151.0,0.000201,4]
[378476713,1754880640294,-151.0,0.000201,3]
[378476714,1754880640304,-646.33750977,0.00020127,2]
[378476716,1754880640313,-214.276868,0.00020187,2]
[378476718,1754880640322,-508.0,0.00020227,2]
[378476720,1754880640331,-460.0,0.00020227,2]
[378476721,1754880640340,-461.41349261,0.00020227,2]
[378476723,1754880640349,-462.77014368,0.00020227,2]
[378476725,1754880640358,-460.0,0.00020227,2]
[378476727,1754880640368,-460.0,0.00020227,2]
[378476728,1754880640377,-460.0,0.00020227,2]
[378476730,1754880640386,-464.63253579,0.00020227,2]
[378476732,1754880640395,-460.0,0.00020227,2]
[378476734,1754880640404,-460.0,0.00020227,2]
[378476736,1754880640413,-460.0,0.00020227,2]
[378476737,1754880640422,-464.89139694,0.00020227,2]
[378476739,1754880640431,-463.02542201,0.00020227,2]
[378476741,1754880640439,-460.0,0.00020227,2]
[378476743,1754880640449,-465.52688109,0.00020227,2]
[378476744,1754880640458,-466.05341148,0.00020227,2]
[378476746,1754880640467,-468.8086684,0.00020227,2]
[378476748,1754880640476,-463.10098974,0.00020227,2]
[378476750,1754880640485,-464.24280319,0.00020227,2]
[378476752,1754880640494,-475.28362968,0.00020227,2]